[Event "Titled Tuesday Blitz January 03 Late 2023"]
[White "UnknownMagician"]
[Black "Della Corte, Alessandro"]
[BlackFideId "813540"]
[WhiteElo "2670"]
[BlackElo "2160"]
[Result "1-0"]
[Round "04"]
[TimeControl "180+2"]
[Date "2023.01.03"]
[WhiteClock "0:02:22"]
[BlackClock "0:02:19"]

1. c4 {[%clk 0:03:00]}  e6 {[%clk 0:02:58]} 2. Nc3 {[%clk 0:03:00]}  d5 {[%clk 0:02:57]} 3. e3 {[%clk 0:02:59]}  Nf6 {[%clk 0:02:57]} 4. Nf3 {[%clk 0:03:00]}  Be7 {[%clk 0:02:57]} 5. b3 {[%clk 0:03:00]}  a5 {[%clk 0:02:57]} 6. Bb2 {[%clk 0:03:00]}  Nbd7 {[%clk 0:02:56]} 7. Qc2 {[%clk 0:02:58]}  O-O {[%clk 0:02:55]} 8. g4 {[%clk 0:02:57]}  Nc5 {[%clk 0:02:54]} 9. g5 {[%clk 0:02:51]}  Nfe4 {[%clk 0:02:53]} 10. h4 {[%clk 0:02:46]}  a4 {[%clk 0:02:41]} 11. Rc1 {[%clk 0:02:27]}  axb3 {[%clk 0:02:40]} 12. axb3 {[%clk 0:02:28]}  dxc4 {[%clk 0:02:23]} 13. Nxe4 {[%clk 0:02:23]}  cxb3 {[%clk 0:02:19]} 14. Qc3 {[%clk 0:02:22]} 1-0


[Site "https://www.chess.com"]

[Event "Titled Tuesday Blitz January 03 Late 2023"]
[White "Vovk, Orest"]
[Black "Siniauski, Artsiom"]
[WhiteFideId "14113490"]
[BlackFideId "13512269"]
[WhiteElo "2315"]
[BlackElo "2231"]
[Result "1-0"]
[Round "04"]
[TimeControl "180+2"]
[Date "2023.01.03"]
[WhiteClock "0:01:18"]
[BlackClock "0:00:13"]

1. h4 {[%clk 0:02:56]}  Nf6 {[%clk 0:03:00]} 2. h5 {[%clk 0:02:56]}  c5 {[%clk 0:02:59]} 3. h6 {[%clk 0:02:43]}  gxh6 {[%clk 0:02:59]} 4. d3 {[%clk 0:02:43]}  Nc6 {[%clk 0:02:57]} 5. Bxh6 {[%clk 0:02:42]}  Bxh6 {[%clk 0:02:55]} 6. Rxh6 {[%clk 0:02:41]}  d5 {[%clk 0:02:55]} 7. Nc3 {[%clk 0:02:39]}  d4 {[%clk 0:02:54]} 8. Ne4 {[%clk 0:02:36]}  Nxe4 {[%clk 0:02:54]} 9. dxe4 {[%clk 0:02:37]}  Ne5 {[%clk 0:02:49]} 10. e3 {[%clk 0:02:31]}  Qa5+ {[%clk 0:02:46]} 11. Qd2 {[%clk 0:02:28]}  Qxd2+ {[%clk 0:02:43]} 12. Kxd2 {[%clk 0:02:28]}  Ng4 {[%clk 0:02:43]} 13. Rh5 {[%clk 0:02:22]}  Nxf2 {[%clk 0:02:35]} 14. Bb5+ {[%clk 0:02:14]}  Bd7 {[%clk 0:02:07]} 15. Bxd7+ {[%clk 0:02:09]}  Kxd7 {[%clk 0:02:07]} 16. exd4 {[%clk 0:02:09]}  Nxe4+ {[%clk 0:02:04]} 17. Ke3 {[%clk 0:02:04]}  Nf6 {[%clk 0:02:02]} 18. Rxc5 {[%clk 0:02:03]}  Rhg8 {[%clk 0:02:01]} 19. Kf3 {[%clk 0:01:58]}  Rg4 {[%clk 0:01:55]} 20. Ne2 {[%clk 0:01:55]}  Rag8 {[%clk 0:01:52]} 21. g3 {[%clk 0:01:55]}  Ne4 {[%clk 0:01:48]} 22. Rd5+ {[%clk 0:01:47]}  Kc6 {[%clk 0:01:13]} 23. Re5 {[%clk 0:01:44]}  Nxg3 {[%clk 0:01:13]} 24. Rg1 {[%clk 0:01:39]}  f6 {[%clk 0:00:26]} 25. Rc5+ {[%clk 0:01:35]}  Kd6 {[%clk 0:00:24]} 26. Rxg3 {[%clk 0:01:35]}  Rxg3+ {[%clk 0:00:24]} 27. Nxg3 {[%clk 0:01:35]}  e5 {[%clk 0:00:22]} 28. Ne4+ {[%clk 0:01:32]}  Ke6 {[%clk 0:00:16]} 29. d5+ {[%clk 0:01:27]}  Kd7 {[%clk 0:00:14]} 30. Nxf6+ {[%clk 0:01:26]}  Kd6 {[%clk 0:00:13]} 31. Nxg8 {[%clk 0:01:22]}  Kxc5 {[%clk 0:00:13]} 32. Ke4 {[%clk 0:01:20]}  Kd6 {[%clk 0:00:13]} 33. Nh6 {[%clk 0:01:18]} 1-0


[Site "https://www.chess.com"]

[Event "Titled Tuesday Blitz January 03 Late 2023"]
[White "Haydon, David L"]
[Black "Seletsky, Grigory"]
[WhiteFideId "415405"]
[BlackFideId "14112191"]
[WhiteElo "2253"]
[BlackElo "2259"]
[Result "1-0"]
[Round "04"]
[TimeControl "180+2"]
[Date "2023.01.03"]
[WhiteClock "0:02:31"]
[BlackClock "0:00:14"]

1. d4 {[%clk 0:02:58]}  d5 {[%clk 0:00:31]} 2. Nf3 {[%clk 0:02:57]}  c6 {[%clk 0:00:31]} 3. c4 {[%clk 0:02:57]}  Nf6 {[%clk 0:00:31]} 4. Nc3 {[%clk 0:02:57]}  e6 {[%clk 0:00:32]} 5. Bg5 {[%clk 0:02:55]}  Be7 {[%clk 0:00:32]} 6. e3 {[%clk 0:02:55]}  O-O {[%clk 0:00:33]} 7. Qc2 {[%clk 0:02:55]}  Nbd7 {[%clk 0:00:33]} 8. Bd3 {[%clk 0:02:55]}  b6 {[%clk 0:00:33]} 9. Ne5 {[%clk 0:02:52]}  Bb7 {[%clk 0:00:30]} 10. Nxd7 {[%clk 0:02:49]}  Qxd7 {[%clk 0:00:30]} 11. Bxf6 {[%clk 0:02:48]}  Bxf6 {[%clk 0:00:29]} 12. Bxh7+ {[%clk 0:02:48]}  Kh8 {[%clk 0:00:29]} 13. cxd5 {[%clk 0:02:49]}  cxd5 {[%clk 0:00:27]} 14. Bd3 {[%clk 0:02:49]}  Rac8 {[%clk 0:00:28]} 15. Qe2 {[%clk 0:02:48]}  g6 {[%clk 0:00:26]} 16. h4 {[%clk 0:02:48]}  Kg7 {[%clk 0:00:25]} 17. g4 {[%clk 0:02:42]}  Rh8 {[%clk 0:00:25]} 18. h5 {[%clk 0:02:38]}  g5 {[%clk 0:00:22]} 19. h6+ {[%clk 0:02:35]}  Rxh6 {[%clk 0:00:20]} 20. Rxh6 {[%clk 0:02:34]}  Kxh6 {[%clk 0:00:21]} 21. Qf3 {[%clk 0:02:34]}  Kg7 {[%clk 0:00:18]} 22. O-O-O {[%clk 0:02:32]}  b5 {[%clk 0:00:17]} 23. Rh1 {[%clk 0:02:31]}  b4 {[%clk 0:00:15]} 24. Rh7+ {[%clk 0:02:30]}  Kf8 {[%clk 0:00:14]} 25. Qxf6 {[%clk 0:02:31]} 1-0


[Site "https://www.chess.com"]

[Event "Titled Tuesday Blitz January 03 Late 2023"]
[White "Donskov, Anatoly"]
[Black "Weetik, Vjacheslav"]
[WhiteFideId "24143413"]
[BlackFideId "4153472"]
[WhiteElo "2279"]
[BlackElo "2423"]
[Result "1-0"]
[Round "04"]
[TimeControl "180+2"]
[Date "2023.01.03"]
[WhiteClock "0:01:13"]
[BlackClock "0:00:10"]

1. e4 {[%clk 0:03:00]}  c6 {[%clk 0:02:57]} 2. d4 {[%clk 0:02:58]}  d5 {[%clk 0:02:57]} 3. e5 {[%clk 0:02:58]}  Bf5 {[%clk 0:02:57]} 4. Nf3 {[%clk 0:02:58]}  e6 {[%clk 0:02:57]} 5. c4 {[%clk 0:02:58]}  Nd7 {[%clk 0:02:57]} 6. Nc3 {[%clk 0:02:59]}  Ne7 {[%clk 0:02:56]} 7. cxd5 {[%clk 0:02:57]}  cxd5 {[%clk 0:02:55]} 8. Bd3 {[%clk 0:02:57]}  Rc8 {[%clk 0:02:50]} 9. O-O {[%clk 0:02:56]}  g6 {[%clk 0:02:42]} 10. Bg5 {[%clk 0:02:54]}  h6 {[%clk 0:02:38]} 11. Nb5 {[%clk 0:02:48]}  Rc6 {[%clk 0:02:29]} 12. Nd6+ {[%clk 0:02:41]}  Rxd6 {[%clk 0:02:28]} 13. exd6 {[%clk 0:02:42]}  hxg5 {[%clk 0:02:29]} 14. dxe7 {[%clk 0:02:40]}  Bxe7 {[%clk 0:02:28]} 15. Ne5 {[%clk 0:02:38]}  Nxe5 {[%clk 0:02:22]} 16. dxe5 {[%clk 0:02:39]}  g4 {[%clk 0:02:17]} 17. Bxf5 {[%clk 0:02:36]}  gxf5 {[%clk 0:02:17]} 18. Qa4+ {[%clk 0:02:36]}  Kf8 {[%clk 0:02:17]} 19. Qxa7 {[%clk 0:02:35]}  Qc7 {[%clk 0:02:11]} 20. Qe3 {[%clk 0:02:31]}  Rh5 {[%clk 0:01:51]} 21. Rac1 {[%clk 0:02:30]}  Qa5 {[%clk 0:01:47]} 22. Rc8+ {[%clk 0:02:27]}  Kg7 {[%clk 0:01:42]} 23. a3 {[%clk 0:02:27]}  Bg5 {[%clk 0:01:35]} 24. Qc5 {[%clk 0:02:24]}  Qxc5 {[%clk 0:01:33]} 25. Rxc5 {[%clk 0:02:25]}  Bf4 {[%clk 0:01:34]} 26. g3 {[%clk 0:02:25]}  Bxe5 {[%clk 0:01:34]} 27. Rb5 {[%clk 0:02:26]}  f4 {[%clk 0:01:30]} 28. Rxb7 {[%clk 0:02:24]}  f3 {[%clk 0:01:28]} 29. a4 {[%clk 0:02:24]}  Bd4 {[%clk 0:01:27]} 30. a5 {[%clk 0:02:22]}  Rh8 {[%clk 0:01:19]} 31. b4 {[%clk 0:02:22]}  Rc8 {[%clk 0:01:19]} 32. a6 {[%clk 0:02:18]}  Rc2 {[%clk 0:01:18]} 33. b5 {[%clk 0:02:10]}  Ra2 {[%clk 0:01:15]} 34. h3 {[%clk 0:01:54]}  e5 {[%clk 0:01:13]} 35. hxg4 {[%clk 0:01:52]}  e4 {[%clk 0:01:13]} 36. Rd7 {[%clk 0:01:35]}  e3 {[%clk 0:01:03]} 37. fxe3 {[%clk 0:01:35]}  Bxe3+ {[%clk 0:01:03]} 38. Kh1 {[%clk 0:01:36]}  d4 {[%clk 0:00:50]} 39. Rxf3 {[%clk 0:01:36]}  Kg6 {[%clk 0:00:39]} 40. Rfxf7 {[%clk 0:01:20]}  Ra1+ {[%clk 0:00:25]} 41. Kg2 {[%clk 0:01:19]}  Ra2+ {[%clk 0:00:25]} 42. Kf3 {[%clk 0:01:13]}  Rf2+ {[%clk 0:00:11]} 43. Ke4 {[%clk 0:01:13]}  Rxf7 {[%clk 0:00:10]} 44. Rxf7 {[%clk 0:01:13]}  Kxf7 {[%clk 0:00:10]} 45. Kd3 {[%clk 0:01:13]} 1-0


[Site "https://www.chess.com"]

[Event "Titled Tuesday Blitz January 03 Late 2023"]
[White "Sebag, Marie"]
[Black "Gatterer, Florian"]
[WhiteFideId "617822"]
[BlackFideId "811688"]
[WhiteElo "2430"]
[BlackElo "2170"]
[Result "1-0"]
[Round "04"]
[TimeControl "180+2"]
[Date "2023.01.03"]
[WhiteClock "0:00:07"]
[BlackClock "0:00:09"]

1. e4 {[%clk 0:02:58]}  c6 {[%clk 0:03:00]} 2. Nf3 {[%clk 0:02:55]}  d5 {[%clk 0:03:00]} 3. Nc3 {[%clk 0:02:55]}  Bg4 {[%clk 0:03:00]} 4. h3 {[%clk 0:02:54]}  Bxf3 {[%clk 0:03:01]} 5. Qxf3 {[%clk 0:02:54]}  e6 {[%clk 0:03:01]} 6. Be2 {[%clk 0:02:54]}  Nd7 {[%clk 0:03:01]} 7. O-O {[%clk 0:02:54]}  Bc5 {[%clk 0:03:01]} 8. Rd1 {[%clk 0:02:53]}  Ne7 {[%clk 0:02:59]} 9. d4 {[%clk 0:02:53]}  Bd6 {[%clk 0:02:59]} 10. Bf1 {[%clk 0:02:45]}  O-O {[%clk 0:02:57]} 11. Ne2 {[%clk 0:02:45]}  Ng6 {[%clk 0:02:55]} 12. e5 {[%clk 0:02:40]}  Be7 {[%clk 0:02:39]} 13. Qg4 {[%clk 0:02:36]}  c5 {[%clk 0:02:34]} 14. c3 {[%clk 0:02:35]}  Nh4 {[%clk 0:02:31]} 15. Ng3 {[%clk 0:02:31]}  g6 {[%clk 0:02:24]} 16. Bh6 {[%clk 0:02:26]}  Re8 {[%clk 0:02:24]} 17. Bd3 {[%clk 0:02:23]}  Kh8 {[%clk 0:02:11]} 18. Kh2 {[%clk 0:02:17]}  Rg8 {[%clk 0:02:10]} 19. f4 {[%clk 0:02:00]}  Nf5 {[%clk 0:02:08]} 20. Bg5 {[%clk 0:01:54]}  Bxg5 {[%clk 0:01:59]} 21. fxg5 {[%clk 0:01:54]}  Ne3 {[%clk 0:01:47]} 22. Qf4 {[%clk 0:01:46]}  Nxd1 {[%clk 0:01:42]} 23. Rxd1 {[%clk 0:01:45]}  Qe7 {[%clk 0:01:40]} 24. Rf1 {[%clk 0:01:45]}  cxd4 {[%clk 0:01:32]} 25. cxd4 {[%clk 0:01:42]}  Rac8 {[%clk 0:01:31]} 26. Qxf7 {[%clk 0:01:28]}  Qxf7 {[%clk 0:01:31]} 27. Rxf7 {[%clk 0:01:28]}  Rg7 {[%clk 0:01:28]} 28. Rf1 {[%clk 0:01:26]}  a6 {[%clk 0:01:26]} 29. Ne2 {[%clk 0:01:25]}  Kg8 {[%clk 0:01:20]} 30. h4 {[%clk 0:01:18]}  Nf8 {[%clk 0:01:18]} 31. g4 {[%clk 0:01:12]}  Rf7 {[%clk 0:01:11]} 32. Rxf7 {[%clk 0:01:04]}  Kxf7 {[%clk 0:01:11]} 33. Kg3 {[%clk 0:01:04]}  Rc6 {[%clk 0:01:07]} 34. h5 {[%clk 0:01:02]}  Rc7 {[%clk 0:01:05]} 35. Kf3 {[%clk 0:00:59]}  Rc6 {[%clk 0:01:04]} 36. Ke3 {[%clk 0:00:58]}  Rb6 {[%clk 0:01:04]} 37. b3 {[%clk 0:00:57]}  Rc6 {[%clk 0:01:04]} 38. Kd2 {[%clk 0:00:55]}  Rc7 {[%clk 0:01:03]} 39. Nf4 {[%clk 0:00:54]}  Rc6 {[%clk 0:00:58]} 40. Bf1 {[%clk 0:00:52]}  Rc7 {[%clk 0:00:53]} 41. Bg2 {[%clk 0:00:52]}  Rc8 {[%clk 0:00:47]} 42. Bf3 {[%clk 0:00:50]}  Rc7 {[%clk 0:00:46]} 43. a4 {[%clk 0:00:46]}  b5 {[%clk 0:00:42]} 44. a5 {[%clk 0:00:43]}  b4 {[%clk 0:00:36]} 45. Be2 {[%clk 0:00:41]}  Rc3 {[%clk 0:00:36]} 46. Bxa6 {[%clk 0:00:34]}  Rxb3 {[%clk 0:00:36]} 47. Bb5 {[%clk 0:00:33]}  Ra3 {[%clk 0:00:35]} 48. a6 {[%clk 0:00:33]}  Ke7 {[%clk 0:00:33]} 49. Nd3 {[%clk 0:00:28]}  Ra5 {[%clk 0:00:27]} 50. Bc6 {[%clk 0:00:22]}  Rxa6 {[%clk 0:00:26]} 51. Nxb4 {[%clk 0:00:22]}  Rb6 {[%clk 0:00:23]} 52. Kc3 {[%clk 0:00:22]}  Nd7 {[%clk 0:00:21]} 53. Ba4 {[%clk 0:00:21]}  Kd8 {[%clk 0:00:17]} 54. Bc2 {[%clk 0:00:20]}  Kc7 {[%clk 0:00:16]} 55. hxg6 {[%clk 0:00:19]}  hxg6 {[%clk 0:00:15]} 56. Bxg6 {[%clk 0:00:20]}  Nf8 {[%clk 0:00:16]} 57. Bf7 {[%clk 0:00:20]}  Rb7 {[%clk 0:00:15]} 58. g6 {[%clk 0:00:20]}  Nxg6 {[%clk 0:00:14]} 59. Bxg6 {[%clk 0:00:19]}  Kd7 {[%clk 0:00:15]} 60. Nd3 {[%clk 0:00:19]}  Rc7+ {[%clk 0:00:14]} 61. Nc5+ {[%clk 0:00:18]}  Ke7 {[%clk 0:00:15]} 62. Kd3 {[%clk 0:00:18]}  Ra7 {[%clk 0:00:16]} 63. Bh5 {[%clk 0:00:17]}  Ra3+ {[%clk 0:00:16]} 64. Ke2 {[%clk 0:00:17]}  Rh3 {[%clk 0:00:16]} 65. Nd3 {[%clk 0:00:16]}  Rg3 {[%clk 0:00:15]} 66. Nf4 {[%clk 0:00:14]}  Rg1 {[%clk 0:00:14]} 67. Ke3 {[%clk 0:00:14]}  Rg3+ {[%clk 0:00:14]} 68. Kf2 {[%clk 0:00:14]}  Rc3 {[%clk 0:00:14]} 69. g5 {[%clk 0:00:14]}  Rc4 {[%clk 0:00:14]} 70. Ke3 {[%clk 0:00:13]}  Rc3+ {[%clk 0:00:15]} 71. Nd3 {[%clk 0:00:13]}  Ra3 {[%clk 0:00:15]} 72. g6 {[%clk 0:00:13]}  Ra8 {[%clk 0:00:15]} 73. Nf4 {[%clk 0:00:12]}  Rh8 {[%clk 0:00:14]} 74. Kf3 {[%clk 0:00:09]}  Rb8 {[%clk 0:00:13]} 75. Kg4 {[%clk 0:00:09]}  Rb1 {[%clk 0:00:12]} 76. Kg5 {[%clk 0:00:09]}  Rg1+ {[%clk 0:00:11]} 77. Kh6 {[%clk 0:00:09]}  Rg3 {[%clk 0:00:11]} 78. g7 {[%clk 0:00:08]}  Rg1 {[%clk 0:00:10]} 79. Bg6 {[%clk 0:00:07]}  Rh1+ {[%clk 0:00:09]} 80. Nh5 {[%clk 0:00:07]}  Rg1 {[%clk 0:00:08]} 81. g8=Q {[%clk 0:00:07]}  Kd7 {[%clk 0:00:09]} 82. Qf7+ {[%clk 0:00:07]}  Kc6 {[%clk 0:00:08]} 83. Qxe6+ {[%clk 0:00:07]}  Kb5 {[%clk 0:00:09]} 84. Qxd5+ {[%clk 0:00:07]} 1-0


[Site "https://www.chess.com"]

[Event "Titled Tuesday Blitz January 03 Late 2023"]
[White "Urbina Perez, Juan Antonio"]
[Black "Golubev, Mikhail"]
[WhiteFideId "2217368"]
[BlackFideId "14100983"]
[WhiteElo "2266"]
[BlackElo "2461"]
[Result "1-0"]
[Round "04"]
[TimeControl "180+2"]
[Date "2023.01.03"]
[WhiteClock "0:00:25"]
[BlackClock "0:00:02"]

1. e4 {[%clk 0:03:00]}  c5 {[%clk 0:02:59]} 2. Nf3 {[%clk 0:03:00]}  d6 {[%clk 0:03:00]} 3. Bb5+ {[%clk 0:02:59]}  Bd7 {[%clk 0:02:59]} 4. c4 {[%clk 0:02:59]}  Nc6 {[%clk 0:02:57]} 5. O-O {[%clk 0:02:58]}  Nf6 {[%clk 0:02:55]} 6. Nc3 {[%clk 0:02:58]}  g6 {[%clk 0:02:51]} 7. d3 {[%clk 0:02:58]}  Bg7 {[%clk 0:02:50]} 8. Ba4 {[%clk 0:02:55]}  O-O {[%clk 0:02:49]} 9. a3 {[%clk 0:02:50]}  a6 {[%clk 0:02:46]} 10. Rb1 {[%clk 0:02:48]}  Ng4 {[%clk 0:02:34]} 11. h3 {[%clk 0:02:35]}  Nge5 {[%clk 0:02:33]} 12. Nxe5 {[%clk 0:02:34]}  Bxe5 {[%clk 0:02:19]} 13. Bd2 {[%clk 0:02:22]}  Bg7 {[%clk 0:02:16]} 14. b4 {[%clk 0:02:17]}  Nd4 {[%clk 0:02:02]} 15. Bxd7 {[%clk 0:02:14]}  Qxd7 {[%clk 0:02:02]} 16. Nd5 {[%clk 0:02:14]}  Rad8 {[%clk 0:01:46]} 17. Be3 {[%clk 0:02:07]}  e6 {[%clk 0:01:43]} 18. Bxd4 {[%clk 0:02:06]}  Bxd4 {[%clk 0:01:42]} 19. Ne3 {[%clk 0:02:02]}  f5 {[%clk 0:01:39]} 20. Nc2 {[%clk 0:01:54]}  Bg7 {[%clk 0:01:39]} 21. exf5 {[%clk 0:01:51]}  gxf5 {[%clk 0:01:37]} 22. Qf3 {[%clk 0:01:46]}  b5 {[%clk 0:01:20]} 23. Ne3 {[%clk 0:01:40]}  f4 {[%clk 0:01:07]} 24. Ng4 {[%clk 0:01:33]}  Bd4 {[%clk 0:00:47]} 25. Rfe1 {[%clk 0:01:29]}  e5 {[%clk 0:00:42]} 26. Nh2 {[%clk 0:01:12]}  Kh8 {[%clk 0:00:41]} 27. Qd5 {[%clk 0:01:07]}  Rg8 {[%clk 0:00:37]} 28. Kh1 {[%clk 0:00:56]}  Bxf2 {[%clk 0:00:36]} 29. Re2 {[%clk 0:00:55]}  Be3 {[%clk 0:00:31]} 30. Ng4 {[%clk 0:00:51]}  Bd4 {[%clk 0:00:20]} 31. bxc5 {[%clk 0:00:43]}  Rxg4 {[%clk 0:00:10]} 32. hxg4 {[%clk 0:00:31]}  Qxg4 {[%clk 0:00:11]} 33. Qf3 {[%clk 0:00:31]}  Qxf3 {[%clk 0:00:06]} 34. gxf3 {[%clk 0:00:32]}  Bxc5 {[%clk 0:00:06]} 35. cxb5 {[%clk 0:00:31]}  axb5 {[%clk 0:00:06]} 36. Rxb5 {[%clk 0:00:31]}  Bxa3 {[%clk 0:00:07]} 37. Rg2 {[%clk 0:00:25]}  Bc5 {[%clk 0:00:06]} 38. Rb7 {[%clk 0:00:25]}  Rg8 {[%clk 0:00:05]} 39. Rxg8+ {[%clk 0:00:23]}  Kxg8 {[%clk 0:00:05]} 40. Kg2 {[%clk 0:00:24]}  h6 {[%clk 0:00:02]} 41. Kh3 {[%clk 0:00:25]} 1-0


[Site "https://www.chess.com"]

[Event "Titled Tuesday Blitz January 03 Late 2023"]
[White "Krsnik Cohar, Ivan Vihor"]
[Black "Dudzinski, Pawel"]
[WhiteFideId "14520044"]
[BlackFideId "1117890"]
[WhiteElo "2336"]
[BlackElo "2186"]
[Result "1-0"]
[Round "04"]
[TimeControl "180+2"]
[Date "2023.01.03"]
[WhiteClock "0:01:06"]
[BlackClock "0:00:11"]

1. e4 {[%clk 0:03:00]}  c6 {[%clk 0:02:59]} 2. Nf3 {[%clk 0:03:01]}  d5 {[%clk 0:03:00]} 3. exd5 {[%clk 0:03:01]}  cxd5 {[%clk 0:03:01]} 4. c4 {[%clk 0:03:02]}  Nf6 {[%clk 0:02:55]} 5. cxd5 {[%clk 0:03:01]}  Nxd5 {[%clk 0:02:55]} 6. d4 {[%clk 0:03:00]}  Nc6 {[%clk 0:02:52]} 7. Bb5 {[%clk 0:03:00]}  Qa5+ {[%clk 0:02:48]} 8. Nc3 {[%clk 0:02:58]}  Nxc3 {[%clk 0:02:48]} 9. Bxc6+ {[%clk 0:02:58]}  bxc6 {[%clk 0:02:48]} 10. Qd2 {[%clk 0:02:53]}  e5 {[%clk 0:02:00]} 11. bxc3 {[%clk 0:02:52]}  exd4 {[%clk 0:01:57]} 12. Qxd4 {[%clk 0:02:51]}  Be6 {[%clk 0:01:14]} 13. O-O {[%clk 0:02:46]}  Rd8 {[%clk 0:01:14]} 14. Qe4 {[%clk 0:02:16]}  Qd5 {[%clk 0:01:03]} 15. Qa4 {[%clk 0:02:07]}  Bc5 {[%clk 0:00:56]} 16. Ba3 {[%clk 0:01:59]}  O-O {[%clk 0:00:23]} 17. Rad1 {[%clk 0:01:21]}  Qf5 {[%clk 0:00:22]} 18. Nd4 {[%clk 0:01:14]}  Bxd4 {[%clk 0:00:21]} 19. Bxf8 {[%clk 0:01:14]}  Bxc3 {[%clk 0:00:13]} 20. Rxd8 {[%clk 0:01:12]}  h6 {[%clk 0:00:11]} 21. Bb4+ {[%clk 0:01:06]} 1-0


[Site "https://www.chess.com"]

[Event "Titled Tuesday Blitz January 03 Late 2023"]
[White "Roman, Rodrigo"]
[Black "Brodowski, Piotr"]
[WhiteFideId "3701220"]
[BlackFideId "1124480"]
[WhiteElo "2058"]
[BlackElo "2457"]
[Result "0-1"]
[Round "04"]
[TimeControl "180+2"]
[Date "2023.01.03"]
[WhiteClock "0:00:05"]
[BlackClock "0:01:04"]

1. d4 {[%clk 0:02:45]}  d6 {[%clk 0:02:55]} 2. Nc3 {[%clk 0:02:38]}  g6 {[%clk 0:02:54]} 3. e4 {[%clk 0:02:35]}  Bg7 {[%clk 0:02:54]} 4. Nf3 {[%clk 0:02:35]}  a6 {[%clk 0:02:53]} 5. Be3 {[%clk 0:02:33]}  b5 {[%clk 0:02:53]} 6. a3 {[%clk 0:02:32]}  Bb7 {[%clk 0:02:53]} 7. Qd2 {[%clk 0:02:33]}  Nd7 {[%clk 0:02:52]} 8. Be2 {[%clk 0:02:28]}  Nb6 {[%clk 0:02:39]} 9. d5 {[%clk 0:02:23]}  Nf6 {[%clk 0:02:32]} 10. h3 {[%clk 0:02:21]}  c6 {[%clk 0:02:28]} 11. dxc6 {[%clk 0:02:04]}  Bxc6 {[%clk 0:02:28]} 12. e5 {[%clk 0:02:05]}  Nfd5 {[%clk 0:02:24]} 13. Bxb6 {[%clk 0:01:54]}  Nxb6 {[%clk 0:02:21]} 14. exd6 {[%clk 0:01:53]}  O-O {[%clk 0:02:20]} 15. dxe7 {[%clk 0:01:53]}  Qxe7 {[%clk 0:02:20]} 16. O-O {[%clk 0:01:52]}  Rad8 {[%clk 0:02:19]} 17. Qg5 {[%clk 0:01:32]}  Qxg5 {[%clk 0:02:18]} 18. Nxg5 {[%clk 0:01:33]}  Rfe8 {[%clk 0:02:17]} 19. Bd3 {[%clk 0:01:28]}  h6 {[%clk 0:02:04]} 20. Nge4 {[%clk 0:01:22]}  Bxe4 {[%clk 0:01:59]} 21. Nxe4 {[%clk 0:01:21]}  Bxb2 {[%clk 0:01:59]} 22. Ra2 {[%clk 0:01:21]}  Bg7 {[%clk 0:01:58]} 23. Nc5 {[%clk 0:01:18]}  Ra8 {[%clk 0:01:48]} 24. Nxa6 {[%clk 0:01:15]}  Rxa6 {[%clk 0:01:42]} 25. Bxb5 {[%clk 0:01:15]}  Rea8 {[%clk 0:01:42]} 26. Bxa6 {[%clk 0:01:15]}  Rxa6 {[%clk 0:01:43]} 27. Rb1 {[%clk 0:01:06]}  Bc3 {[%clk 0:01:39]} 28. Rb3 {[%clk 0:01:03]}  Na4 {[%clk 0:01:38]} 29. Rb8+ {[%clk 0:00:37]}  Kg7 {[%clk 0:01:38]} 30. g3 {[%clk 0:00:33]}  h5 {[%clk 0:01:31]} 31. Kg2 {[%clk 0:00:33]}  Rd6 {[%clk 0:01:28]} 32. Ra8 {[%clk 0:00:32]}  Rd4 {[%clk 0:01:27]} 33. Kf3 {[%clk 0:00:29]}  g5 {[%clk 0:01:24]} 34. Ke3 {[%clk 0:00:28]}  Kg6 {[%clk 0:01:20]} 35. Rc8 {[%clk 0:00:25]}  Rd6 {[%clk 0:01:18]} 36. Rc4 {[%clk 0:00:21]}  Ra6 {[%clk 0:01:18]} 37. Kd3 {[%clk 0:00:20]}  Bf6 {[%clk 0:01:16]} 38. Rb4 {[%clk 0:00:11]}  Rd6+ {[%clk 0:01:10]} 39. Kc4 {[%clk 0:00:06]}  Nc3 {[%clk 0:01:10]} 40. Rab2 {[%clk 0:00:06]}  Nd5 {[%clk 0:01:09]} 41. Rb1 {[%clk 0:00:03]}  Nxb4 {[%clk 0:01:09]} 42. axb4 {[%clk 0:00:03]}  Rc6+ {[%clk 0:01:09]} 43. Kd3 {[%clk 0:00:02]}  Rc3+ {[%clk 0:01:08]} 44. Ke2 {[%clk 0:00:02]}  Rxc2+ {[%clk 0:01:07]} 45. Ke3 {[%clk 0:00:03]}  Rb2 {[%clk 0:01:06]} 46. Rxb2 {[%clk 0:00:02]}  Bxb2 {[%clk 0:01:07]} 47. Kd3 {[%clk 0:00:02]}  Kf5 {[%clk 0:01:06]} 48. b5 {[%clk 0:00:02]}  Be5 {[%clk 0:01:06]} 49. Kc4 {[%clk 0:00:02]}  Bc7 {[%clk 0:01:05]} 50. Kd5 {[%clk 0:00:03]}  Bb6 {[%clk 0:01:04]} 51. f3 {[%clk 0:00:04]}  f6 {[%clk 0:01:04]} 52. Kc6 {[%clk 0:00:04]}  Bf2 {[%clk 0:01:04]} 53. g4+ {[%clk 0:00:03]}  hxg4 {[%clk 0:01:04]} 54. fxg4+ {[%clk 0:00:04]}  Kf4 {[%clk 0:01:04]} 55. Kd5 {[%clk 0:00:05]}  Kg3 {[%clk 0:01:03]} 56. Ke6 {[%clk 0:00:05]}  Kxh3 {[%clk 0:01:03]} 57. Kxf6 {[%clk 0:00:05]}  Kxg4 {[%clk 0:01:04]} 0-1


[Site "https://www.chess.com"]